[Event "EIWCC 2017"]
[Site "Riga"]
[Date "2017.04.15"]
[Round "5"]
[White "Gundogan, Sinem Cagla"]
[Black "Zaksaite, Salomeja"]
[Result "0-1"]
[ECO "B26"]
[WhiteElo "1885"]
[BlackElo "2262"]
[Annotator "NA"]
[PlyCount "66"]
[EventDate "2017.??.??"]
[EventType "swiss"]
[EventCountry "LAT"]
[SourceTitle "playchess.com"]
[Source "ChessBase"]
[SourceQuality "1"]
[TimeControl "40/5400+30:1800+30"]

1. e4 {[%emt 0:00:00]} c5 {[%emt 0:00:50]} 2. Nc3 {[%emt 0:00:00]} Nc6 {[%emt 0:00:18]} 3. g3 {[%emt 0:00:00]} g6 {[%emt 0:00:14]} 4. Bg2 {[%emt 0:00:00]} Bg7 {[%emt 0:00:05]} 5. d3 {[%emt 0:00:04]} d6 {[%emt 0:00:20]} 6. Be3 {[%emt 0:03:11]} e5 {[%emt 0:00:11]} 7. Nh3 {[%emt 0:02:24]} Nge7 {[%emt 0:00:24]} 8. O-O {[%emt 0:00:10]} O-O {[%emt 0:00:50]} 9. f4 {[%emt 0:00:50]} exf4 {[%emt 0:11:59]} 10. Nxf4 {[%emt 0:00:59]} Ne5 {[%emt 0:00:20] LiveBook: 7 Games} 11. Nfd5 {[%emt 0:11:05]} Nxd5 {[%emt 0:00:40]} 12. Nxd5 {[%emt 0:03:35]} Ng4 {[%emt 0:02:02]} 13. Bc1 {[%emt 0:09:39]} Be6 {[%emt 0:06:31]} 14. c3 {[%emt 0:02:24]} Re8 {[%emt 0:13:21]} 15. h3 $11 {[%emt 0:05:10]} Ne5 {[%emt 0:03:32]} 16. Bf4 {[%emt 0:03:43]} Bxd5 {[%emt 0:06:56]} 17. exd5 {[%emt 0:00:09]} Qb6 {[%emt 0:00:02]} 18. Qd2 {[%emt 0:06:19]} Nxd3 {[%emt 0:01:12]} 19. Be3 {[%emt 0:16:01]} Nxb2 {[%emt 0:07:10]} 20. Rab1 {[%emt 0:13:05]} Nc4 {[%emt 0:00:47]} 21. Qf2 {[%emt 0:00:06]} Qc7 {[%emt 0:00:21]} 22. Bd2 {[%emt 0:00:32]} Nxd2 {[%emt 0:07:46]} 23. Qxd2 {[%emt 0:00:05]} c4 {[%emt 0:00:05]} 24. Rf3 {[%emt 0:04:05]} Re7 {[%emt 0:02:46]} 25. Kh2 {[%emt 0:01:00]} Rae8 {[%emt 0:00:08]} 26. Bf1 {[%emt 0:00:15]} Qc5 {[%emt 0:05:06]} 27. Rb4 {[%emt 0:04:08]} b5 {[%emt 0:00:28]} 28. a4 {[%emt 0:02:14]} a6 {[%emt 0:00:04]} 29. axb5 {[%emt 0:00:20]} axb5 {[%emt 0:00:02]} 30. Qb2 {[%emt 0:04:11]} Qxd5 {[%emt 0:00:50]} 31. Rf2 {[%emt 0:00:06]} Re5 {[%emt 0:02:13]} 32. Bg2 {[%emt 0:00:03]} Qc5 {[%emt 0:05:43]} 33. Qd2 {[%emt 0:02:00]} Bh6 {[%emt 0:09:02]} 0-1

[Event "EIWCC 2017"]
[Site "Riga"]
[Date "2017.04.16"]
[Round "6"]
[White "Osmanodja, Filiz"]
[Black "Sinitsina, Anastassia"]
[Result "1-0"]
[ECO "B24"]
[WhiteElo "2370"]
[BlackElo "2052"]
[Annotator "NA RC"]
[PlyCount "47"]
[EventDate "2017.??.??"]
[EventType "swiss"]
[EventCountry "LAT"]
[SourceTitle "playchess.com"]
[Source "ChessBase"]
[SourceQuality "1"]
[TimeControl "40/5400+30:1800+30"]

1. e4 {[%emt 0:00:00]} c5 {[%emt 0:00:15]} 2. Nc3 {[%emt 0:00:00]} Nc6 {[%emt 0:00:19]} 3. Bb5 {[%emt 0:00:00]} Nd4 {[%emt 0:01:18]} 4. Bc4 {[%emt 0:00:01]} e6 {[%emt 0:00:31]} 5. Nge2 {[%emt 0:01:00]} Qc7 {[%emt 0:02:33]} 6. d3 {[%emt 0:01:29]} Nxe2 {[%emt 0:01:30]} 7. Qxe2 {[%emt 0:02:08]} a6 {[%emt 0:00:44]} 8. a4 {[%emt 0:01:53]} Ne7 {[%emt 0:01:09]} 9. O-O {[%emt 0:06:59]} Nc6 {[%emt 0:01:18]} 10. f4 {[%emt 0:04:26]} Be7 {[%emt 0:02:12]} 11. Qg4 {[%emt 0:20:18]} O-O {[%emt 0:03:02]} 12. f5 {[%emt 0:01:16]} Ne5 {[%emt 0:08:47]} 13. Qg3 {[%emt 0:03:27]} Bd6 {[%emt 0:09:51]} 14. Bf4 {[%emt 0:08:45]} Nxc4 {[%emt 0:02:49]} 15. f6 {[%emt 0:00:58]} g6 {[%emt 0:00:23]} 16. Qg5 {[%emt 0:08:44]} Bxf4 {[%emt 0:07:48]} 17. Rxf4 {[%emt 0:00:07]} Nd6 {[%emt 0:00:11]} 18. e5 {[%emt 0:05:54]} Ne8 $18 {[%emt 0:00:47]} 19. Rh4 {[%emt 0:02:23]} h5 {[%emt 0:02:56]} 20. Rxh5 {[%emt 0:00:31]} Qb6 {[%emt 0:17:45]} 21. Rh3 {[%emt 0:00:48]} c4+ {[%emt 0:00:51]} 22. Kh1 {[%emt 0:00:29]} Qxb2 {[%emt 0:09:35]} 23. Rf1 {[%emt 0:00:18]} Qxc3 {[%emt 0:11:49]} 24. Qh6 {[%emt 0:00:47]} 1-0

[Event "EIWCC 2017"]
[Site "Riga"]
[Date "2017.04.16"]
[Round "6"]
[White "Arda, Cagil Irmak"]
[Black "Warakomska, Anna"]
[Result "0-1"]
[ECO "B47"]
[WhiteElo "2089"]
[BlackElo "2343"]
[Annotator "NA RC"]
[PlyCount "110"]
[EventDate "2017.??.??"]
[EventType "swiss"]
[EventCountry "LAT"]
[SourceTitle "playchess.com"]
[Source "ChessBase"]
[SourceQuality "1"]
[TimeControl "40/5400+30:1800+30"]

1. e4 {[%emt 0:00:07]} c5 {[%emt 0:00:23]} 2. Nf3 {[%emt 0:00:08]} e6 {[%emt 0:00:03]} 3. d4 {[%emt 0:00:33]} cxd4 {[%emt 0:00:05]} 4. Nxd4 {[%emt 0:00:06]} Nc6 {[%emt 0:00:10]} 5. Nc3 {[%emt 0:00:16]} Qc7 {[%emt 0:00:13]} 6. g3 {[%emt 0:00:20]} d6 {[%emt 0:09:05]} 7. Bg2 {[%emt 0:01:15]} Bd7 {[%emt 0:01:06]} 8. O-O {[%emt 0:01:16] LiveBook: 16 Games} a6 {[%emt 0:03:20]} 9. Re1 {[%emt 0:00:33]} Be7 {[%emt 0:00:19] B47: Sicilian: Taimanov: 5 Nc3 Qc7 6 f4, 6 g3 and 6 Be2} 10. Nb3 {[%emt 0:00:17]} (10. Nxc6 Bxc6 11. Qg4 h5 12. Qe2 h4 13. a4 Nf6 14. a5 Kf8 15. Be3 e5 16. Nd5 Nxd5 17. exd5 Bb5 18. c4 Qxc4 19. Qxc4 Bxc4 20. Rec1 Bd3 {½-½ (42) Navara,D (2702)-Movsesian,S (2705) Prague 2011}) 10... Rc8 {[%emt 0:08:14]} 11. f4 {[%emt 0:06:13]} b5 {[%emt 0:06:05]} 12. a3 {[%emt 0:00:27]} h5 {[%emt 0:07:51]} 13. h3 $146 {[%emt 0:00:28]} (13. f5 Nf6 14. fxe6 fxe6 15. h3 O-O 16. Bg5 Be8 17. Qe2 {0-1 (45) Zdebskaja,N-Son,I (2215) Alushta 1999}) 13... Kf8 {[%emt 0:20:35]} 14. Qe2 {[%emt 0:09:49]} Bf6 {[%emt 0:03:59]} 15. Be3 {[%emt 0:01:43]} Bxc3 $1 {[%emt 0:10:31]} 16. bxc3 {[%emt 0:00:07]} e5 {[%emt 0:00:06]} ({Black should play} 16... Nf6 $14) 17. Rad1 {[%emt 0:02:08]} Be6 {[%emt 0:01:52]} 18. Qd2 {[%emt 0:14:09]} (18. Qf2 $16) 18... Ke7 {[%emt 0:01:16]} 19. Qf2 {[%emt 0:02:08]} Nf6 {[%emt 0:03:05]} 20. Bb6 {[%emt 0:07:22]} Qb8 {[%emt 0:00:22]} 21. Bf1 {[%emt 0:12:00]} h4 {[%emt 0:05:53]} 22. g4 {[%emt 0:01:06] [#]} Nd7 {[%emt 0:01:57]} ({Don't take} 22... exf4 23. Nd4 $15) (22... Bxg4 $1 $17 {[%mdl 512]} 23. Rd2 (23. hxg4 Nxg4) 23... exf4) 23. Be3 {[%emt 0:00:58]} exf4 {[%emt 0:00:16]} 24. Bxf4 {[%emt 0:01:28]} Nce5 {[%emt 0:00:39]} 25. Nd4 {[%emt 0:01:12]} Rxc3 $11 {[%emt 0:01:25]} 26. Nf5+ {[%emt 0:08:38]} Bxf5 {[%emt 0:00:44]} 27. exf5 {[%emt 0:00:06]} Kf8 {[%emt 0:02:28]} 28. Bg2 {[%emt 0:01:08]} Qc7 {[%emt 0:03:00]} 29. Qd4 {[%emt 0:03:47]} Rc4 {[%emt 0:04:26]} 30. Qxd6+ {[%emt 0:05:34]} Qxd6 {[%emt 0:00:05]} 31. Rxd6 {[%emt 0:00:05]} Rxf4 {[%emt 0:00:17]} 32. Rxe5 {[%emt 0:00:05]} Nxe5 {[%emt 0:00:10]} 33. Rd8+ {[%emt 0:00:05]} Ke7 {[%emt 0:00:04]} 34. Rxh8 {[%emt 0:00:03]} Ra4 {[%emt 0:03:54]} 35. Ra8 {[%emt 0:10:10]} Rxa3 {[%emt 0:00:20]} 36. Bf1 {[%emt 0:02:11]} Kf6 {[%emt 0:01:28]} 37. Kf2 {[%emt 0:00:33]} Kg5 {[%emt 0:00:58]} 38. Ke1 {[%emt 0:03:06]} Kf4 {[%emt 0:01:14]} 39. Kd2 {[%emt 0:00:58]} Nf3+ {[%emt 0:00:42]} 40. Ke2 {[%emt 0:00:00]} Nd4+ {[%emt 0:00:44]} 41. Kd2 {[%emt 0:00:48]} Nf3+ {[%emt 0:03:00]} 42. Ke2 {[%emt 0:00:47]} Ng1+ {[%emt 0:03:21]} 43. Kd2 {[%emt 0:00:37]} Nxh3 {[%emt 0:02:21]} 44. Bxb5 {[%emt 0:01:02]} Nf2 {[%emt 0:01:31]} 45. Bc6 {[%emt 0:01:41]} Nxg4 {[%emt 0:02:30]} 46. Rg8 {[%emt 0:00:28]} Ne5 {[%emt 0:00:51]} 47. Bd5 {[%emt 0:00:08]} g5 {[%emt 0:01:35]} 48. fxg6 {[%emt 0:00:06]} fxg6 {[%emt 0:00:03]} 49. Rh8 {[%emt 0:01:33]} Kg3 {[%emt 0:03:53]} 50. Re8 {[%emt 0:00:49]} Nf3+ {[%emt 0:00:48]} 51. Bxf3 {[%emt 0:00:30]} Kxf3 {[%emt 0:00:58]} 52. Rg8 {[%emt 0:00:12]} h3 {[%emt 0:00:27]} 53. Rxg6 {[%emt 0:00:10]} h2 {[%emt 0:00:05]} 54. Rf6+ {[%emt 0:01:11]} Kg2 {[%emt 0:00:08]} 55. Rg6+ {[%emt 0:00:09]} Rg3 {[%emt 0:00:17]} 0-1

[Event "EIWCC 2017"]
[Site "Riga"]
[Date "2017.04.17"]
[Round "7"]
[White "Michna, Marta"]
[Black "Berzina, Ilze"]
[Result "1/2-1/2"]
[ECO "A01"]
[WhiteElo "2389"]
[BlackElo "2297"]
[Annotator "RC"]
[PlyCount "168"]
[EventDate "2017.??.??"]
[EventType "swiss"]
[EventCountry "LAT"]
[SourceTitle "playchess.com"]
[Source "ChessBase"]
[SourceQuality "1"]
[TimeControl "40/5400+30:1800+30"]

1. b3 {[%emt 0:00:00]} e5 {[%emt 0:01:54]} 2. Bb2 {[%emt 0:00:00]} Nc6 {[%emt 0:00:23]} 3. e3 {[%emt 0:00:46]} d5 {[%emt 0:01:24]} 4. Bb5 {[%emt 0:02:45]} Bd6 {[%emt 0:07:53]} 5. f4 {[%emt 0:01:14]} Qe7 {[%emt 0:01:37]} 6. Nf3 {[%emt 0:01:53]} Bg4 {[%emt 0:06:44]} 7. h3 {[%emt 0:01:39]} Bxf3 {[%emt 0:00:40]} 8. Qxf3 {[%emt 0:00:28]} Nf6 {[%emt 0:01:25]} 9. O-O {[%emt 0:03:28]} O-O {[%emt 0:05:58]} 10. Nc3 {[%emt 0:17:45]} a6 {[%emt 0:06:32]} 11. Bxc6 {[%emt 0:03:02]} bxc6 {[%emt 0:02:17]} 12. Rae1 {[%emt 0:01:34]} Rfe8 {[%emt 0:04:02]} 13. Re2 {[%emt 0:02:59]} Rab8 {[%emt 0:05:40]} 14. g4 {[%emt 0:09:05]} Nd7 {[%emt 0:06:13]} 15. Rfe1 {[%emt 0:08:49]} Qh4 {[%emt 0:02:29]} 16. Rf1 {[%emt 0:04:20]} Re6 {[%emt 0:08:07]} 17. Rg2 {[%emt 0:09:04]} exf4 {[%emt 0:08:27]} 18. Ne2 {[%emt 0:01:56]} Ne5 {[%emt 0:07:22]} 19. Bxe5 {[%emt 0:01:08]} Rxe5 {[%emt 0:02:23]} 20. Nxf4 {[%emt 0:07:18]} Qe7 {[%emt 0:06:02]} 21. Nh5 {[%emt 0:02:57]} Re4 {[%emt 0:02:27]} 22. Rgf2 {[%emt 0:02:18]} Rf8 {[%emt 0:03:35]} 23. Rg2 {[%emt 0:05:55]} h6 {[%emt 0:03:42]} 24. Ng3 {[%emt 0:03:25]} Bxg3 {[%emt 0:00:13]} 25. Qxg3 {[%emt 0:00:02]} c5 {[%emt 0:02:41]} 26. Rf5 {[%emt 0:00:26]} d4 {[%emt 0:00:14]} 27. exd4 {[%emt 0:00:57]} cxd4 {[%emt 0:00:12]} 28. g5 {[%emt 0:00:40]} h5 {[%emt 0:00:11]} 29. g6 {[%emt 0:00:54]} fxg6 {[%emt 0:00:23]} 30. Rxf8+ {[%emt 0:01:45]} Qxf8 {[%emt 0:02:06]} 31. Qxg6 {[%emt 0:05:43]} Re1+ {[%emt 0:00:07]} 32. Kh2 {[%emt 0:00:01]} h4 {[%emt 0:00:28]} 33. Qh6 {[%emt 0:00:23]} Qe7 {[%emt 0:01:09]} 34. Qf4 {[%emt 0:00:44]} c5 {[%emt 0:00:53]} 35. Rf2 {[%emt 0:00:48]} Re2 {[%emt 0:01:18]} 36. Kg2 {[%emt 0:00:27]} Re5 {[%emt 0:00:24]} 37. Kh2 {[%emt 0:00:34]} Re2 {[%emt 0:00:19]} 38. Kg2 {[%emt 0:00:25]} Re4 {[%emt 0:00:38]} 39. Qf5 {[%emt 0:00:14]} Re5 {[%emt 0:00:19]} 40. Qc8+ {[%emt 0:00:00]} Kh7 {[%emt 0:00:02]} 41. Qxa6 {[%emt 0:03:09]} Rg5+ {[%emt 0:18:35]} 42. Kf1 {[%emt 0:00:04]} Rg6 {[%emt 0:01:42]} 43. Qd3 {[%emt 0:03:57]} Qb7 {[%emt 0:04:13]} 44. a4 {[%emt 0:02:17]} Kh6 {[%emt 0:01:48]} 45. Qf3 {[%emt 0:02:05]} Qa6+ {[%emt 0:00:08]} 46. Qe2 {[%emt 0:07:26]} Qc6 {[%emt 0:00:26]} 47. Qf3 {[%emt 0:00:33]} Qa6+ {[%emt 0:00:08]} 48. d3 {[%emt 0:01:38]} Rf6 {[%emt 0:00:34]} 49. Qe4 {[%emt 0:01:38]} Rxf2+ {[%emt 0:02:16]} 50. Kxf2 {[%emt 0:00:02]} Qf6+ {[%emt 0:00:07]} 51. Ke2 {[%emt 0:00:20]} Qg5 {[%emt 0:00:19]} 52. a5 {[%emt 0:00:59]} Qc1 {[%emt 0:02:35]} 53. Qxh4+ {[%emt 0:00:58]} Kg6 {[%emt 0:00:01]} 54. Qg3+ {[%emt 0:02:26]} Kh7 {[%emt 0:00:13]} 55. Qh4+ {[%emt 0:01:49]} Kg8 {[%emt 0:00:16]} 56. Qe4 {[%emt 0:01:37]} Qxc2+ {[%emt 0:00:12]} 57. Kf3 {[%emt 0:00:02]} Qxb3 {[%emt 0:01:16]} 58. a6 {[%emt 0:00:29]} Qd1+ {[%emt 0:01:00]} 59. Qe2 {[%emt 0:00:53]} Qh1+ {[%emt 0:00:42]} 60. Kg3 {[%emt 0:01:34]} Qa1 {[%emt 0:02:18]} 61. Qe6+ {[%emt 0:00:52]} Kh7 {[%emt 0:00:11]} 62. Qf5+ {[%emt 0:00:54]} Kh8 {[%emt 0:01:26]} 63. Qh5+ {[%emt 0:01:43]} Kg8 {[%emt 0:00:02]} 64. Qd5+ {[%emt 0:01:24]} Kh7 {[%emt 0:00:17]} 65. Qf5+ {[%emt 0:01:56]} Kh6 {[%emt 0:00:57]} 66. Qf4+ {[%emt 0:00:28]} Kh7 {[%emt 0:00:29]} 67. Qe4+ {[%emt 0:00:05]} Kh6 {[%emt 0:01:15]} 68. Qe6+ {[%emt 0:00:13]} g6 {[%emt 0:00:23]} 69. Kf4 {[%emt 0:03:32]} Qf1+ {[%emt 0:00:49]} 70. Ke5 {[%emt 0:00:30]} Qxd3 {[%emt 0:00:59]} 71. a7 {[%emt 0:00:12]} Qg3+ {[%emt 0:00:36]} 72. Kf6 {[%emt 0:01:28]} Qf4+ {[%emt 0:00:15]} 73. Ke7 {[%emt 0:00:04]} Qc7+ {[%emt 0:00:40]} 74. Qd7 {[%emt 0:00:03]} Qe5+ {[%emt 0:00:14]} 75. Kd8 {[%emt 0:00:03]} Qe4 {[%emt 0:01:02]} 76. Kc7 {[%emt 0:00:22]} d3 {[%emt 0:00:19]} 77. Qd8 {[%emt 0:00:42]} Qf4+ {[%emt 0:00:25]} 78. Kc8 {[%emt 0:01:08]} Qf5+ {[%emt 0:00:16]} 79. Kc7 {[%emt 0:00:46]} Qf4+ {[%emt 0:00:15]} 80. Kc8 {[%emt 0:00:22]} Qf5+ {[%emt 0:00:05]} 81. Kb7 {[%emt 0:00:18]} Qe4+ {[%emt 0:00:40]} 82. Kc7 {[%emt 0:00:26]} Qf4+ {[%emt 0:00:05]} 83. Kc8 {[%emt 0:00:52]} Qf5+ {[%emt 0:00:08]} 84. Kc7 {[%emt 0:00:47]} Qf4+ {[%emt 0:00:12]} 1/2-1/2

[Event "EIWCC 2017"]
[Site "Riga"]
[Date "2017.04.17"]
[Round "7"]
[White "Mamedjarova, Zeinab"]
[Black "Hoolt, Sarah"]
[Result "1/2-1/2"]
[ECO "A46"]
[WhiteElo "2322"]
[BlackElo "2398"]
[Annotator "ChessBase"]
[PlyCount "198"]
[EventDate "2017.??.??"]
[EventType "swiss"]
[EventCountry "LAT"]
[SourceTitle "playchess.com"]
[Source "ChessBase"]
[SourceQuality "1"]
[TimeControl "40/5400+30:1800+30"]

1. d4 {[%emt 0:00:00]} Nf6 {[%emt 0:00:07]} 2. Nf3 {[%emt 0:00:00]} e6 {[%emt 0:00:13]} 3. e3 {[%emt 0:00:02]} b6 {[%emt 0:00:22]} 4. Bd3 {[%emt 0:01:51]} Bb7 {[%emt 0:00:07]} 5. Nbd2 {[%emt 0:00:44]} c5 {[%emt 0:00:09]} 6. O-O {[%emt 0:00:29]} Nc6 {[%emt 0:00:49]} 7. Re1 {[%emt 0:06:30]} Be7 {[%emt 0:01:26]} 8. b3 {[%emt 0:10:02]} cxd4 {[%emt 0:06:46]} 9. exd4 {[%emt 0:00:23]} Nb4 {[%emt 0:02:04]} 10. Bf1 {[%emt 0:01:32]} Nfd5 {[%emt 0:04:23]} 11. Bb2 {[%emt 0:00:26]} Rc8 {[%emt 0:01:10]} 12. c4 {[%emt 0:02:34]} Nf4 {[%emt 0:01:42]} 13. Ne4 {[%emt 0:09:22]} d5 {[%emt 0:02:36]} 14. Ng3 {[%emt 0:00:22]} O-O {[%emt 0:07:12]} 15. Qd2 {[%emt 0:12:16]} Qc7 {[%emt 0:14:58]} 16. c5 {[%emt 0:06:43]} Nc6 {[%emt 0:13:53]} 17. b4 {[%emt 0:03:06]} Rce8 {[%emt 0:03:08]} 18. a4 {[%emt 0:04:55]} f6 {[%emt 0:07:05]} 19. Bc3 {[%emt 0:07:44]} Bd8 {[%emt 0:06:17]} 20. b5 {[%emt 0:02:42]} Na5 {[%emt 0:01:05]} 21. c6 {[%emt 0:02:32]} Bc8 {[%emt 0:01:28]} 22. Qc2 {[%emt 0:01:16]} Be7 {[%emt 0:01:05]} 23. Nd2 {[%emt 0:03:59]} Bd6 {[%emt 0:02:02]} 24. Kh1 {[%emt 0:01:02]} Qf7 {[%emt 0:06:05]} 25. Nb3 {[%emt 0:07:09]} Nc4 {[%emt 0:02:20]} 26. a5 {[%emt 0:00:31]} h5 {[%emt 0:01:12]} 27. axb6 {[%emt 0:00:17]} axb6 {[%emt 0:00:11]} 28. Ne2 {[%emt 0:03:09]} Ng6 {[%emt 0:00:05]} 29. Nd2 {[%emt 0:03:12]} Nxd2 {[%emt 0:02:56]} 30. Qxd2 {[%emt 0:00:02]} e5 {[%emt 0:00:51]} 31. Bb4 {[%emt 0:00:58]} Qe7 {[%emt 0:00:23]} 32. Bxd6 {[%emt 0:00:19]} Qxd6 {[%emt 0:00:02]} 33. Nc3 {[%emt 0:03:03]} e4 {[%emt 0:00:02]} 34. Qa2 {[%emt 0:00:36]} Be6 {[%emt 0:00:29]} 35. Qd2 {[%emt 0:04:33]} h4 {[%emt 0:01:58]} 36. Ra6 {[%emt 0:00:12]} Rb8 {[%emt 0:01:39]} 37. Rc1 {[%emt 0:00:43]} h3 {[%emt 0:04:18]} 38. g3 {[%emt 0:00:27]} f5 {[%emt 0:00:53]} 39. Qg5 {[%emt 0:02:12]} Rf6 {[%emt 0:00:40]} 40. Bxh3 {[%emt 0:00:00]} Ne7 {[%emt 0:03:15]} 41. Qf4 {[%emt 0:13:22]} Qxf4 {[%emt 0:00:06]} 42. gxf4 {[%emt 0:00:04]} Nc8 {[%emt 0:03:30]} 43. Na4 {[%emt 0:06:01]} Kf7 {[%emt 0:01:26]} 44. Bf1 {[%emt 0:08:11]} Ke7 {[%emt 0:00:18]} 45. Be2 {[%emt 0:00:26]} Bf7 {[%emt 0:01:04]} 46. Bd1 {[%emt 0:01:52]} Rh6 {[%emt 0:05:29]} 47. Rc3 {[%emt 0:01:56]} Kd6 {[%emt 0:03:23]} 48. Bb3 {[%emt 0:02:42]} Be8 {[%emt 0:00:40]} 49. Rg3 {[%emt 0:00:24]} g6 {[%emt 0:00:13]} 50. Nc3 {[%emt 0:00:46]} Bf7 {[%emt 0:00:14]} 51. Ra1 {[%emt 0:00:10]} Be6 {[%emt 0:02:40]} 52. f3 {[%emt 0:00:43]} Ne7 {[%emt 0:01:26]} 53. Ra7 {[%emt 0:00:05]} Rbh8 {[%emt 0:00:12]} 54. Ra2 {[%emt 0:00:43]} Rh3 {[%emt 0:00:38]} 55. Rxh3 {[%emt 0:00:39]} Rxh3 {[%emt 0:00:05]} 56. Bd1 {[%emt 0:00:27]} exf3 {[%emt 0:00:18]} 57. Rf2 {[%emt 0:00:24]} Rh8 {[%emt 0:00:49]} 58. Bxf3 {[%emt 0:00:15]} Ra8 {[%emt 0:00:10]} 59. Re2 {[%emt 0:01:09]} Ra3 {[%emt 0:00:21]} 60. Rc2 {[%emt 0:00:46]} Rb3 {[%emt 0:00:31]} 61. Kg2 {[%emt 0:00:46]} Rb4 {[%emt 0:00:19]} 62. Rd2 {[%emt 0:00:12]} Rb3 {[%emt 0:00:56]} 63. Rd3 {[%emt 0:00:21]} Nc8 {[%emt 0:00:15]} 64. Be2 {[%emt 0:01:04]} Na7 {[%emt 0:02:07]} 65. Rg3 {[%emt 0:00:13]} Rb4 {[%emt 0:00:31]} 66. Rxg6 {[%emt 0:00:14]} Rxd4 {[%emt 0:00:03]} 67. Rg7 {[%emt 0:00:39]} Nc8 {[%emt 0:00:14]} 68. Kg3 {[%emt 0:00:46]} Rb4 {[%emt 0:00:05]} 69. Bf3 {[%emt 0:00:42]} d4 {[%emt 0:00:37]} 70. Ne2 {[%emt 0:00:27]} d3 {[%emt 0:00:18]} 71. Nc3 {[%emt 0:00:10]} Rb3 {[%emt 0:00:43]} 72. Nd1 {[%emt 0:00:19]} Rxb5 {[%emt 0:00:06]} 73. h4 {[%emt 0:00:15]} Ra5 {[%emt 0:01:43]} 74. h5 {[%emt 0:00:10]} Ra7 {[%emt 0:00:09]} 75. Rb7 {[%emt 0:01:10]} Ra8 {[%emt 0:02:31]} 76. Rd7+ {[%emt 0:00:33]} Kc5 {[%emt 0:00:31]} 77. Rxd3 {[%emt 0:00:38]} Ne7 {[%emt 0:00:52]} 78. Nf2 {[%emt 0:00:47]} b5 {[%emt 0:00:40]} 79. Re3 {[%emt 0:00:29]} Kd6 {[%emt 0:00:10]} 80. Kh4 {[%emt 0:00:32]} Bc4 {[%emt 0:00:51]} 81. h6 {[%emt 0:00:29]} Rg8 {[%emt 0:01:35]} 82. Nd3 {[%emt 0:00:11]} Ng6+ {[%emt 0:06:36]} 83. Kh5 {[%emt 0:00:02]} Bf7 {[%emt 0:00:05]} 84. Kg5 {[%emt 0:01:18]} Ne5+ {[%emt 0:00:41]} 85. Kh4 {[%emt 0:00:30]} Nxf3+ {[%emt 0:01:43]} 86. Rxf3 {[%emt 0:00:02]} Rg4+ {[%emt 0:00:07]} 87. Kh3 {[%emt 0:00:03]} Rg6 {[%emt 0:00:06]} 88. Ne5 {[%emt 0:00:55]} Rxh6+ {[%emt 0:00:07]} 89. Kg3 {[%emt 0:00:02]} Bd5 {[%emt 0:01:30]} 90. Rd3 {[%emt 0:00:28]} Rh7 {[%emt 0:00:11]} 91. Rd1 {[%emt 0:01:08]} b4 {[%emt 0:00:47]} 92. Nd3 {[%emt 0:00:28]} Bxc6 {[%emt 0:03:33]} 93. Nxb4+ {[%emt 0:00:22]} Kc7 {[%emt 0:01:49]} 94. Rc1 {[%emt 0:00:14]} Rh6 {[%emt 0:00:07]} 95. Rc5 {[%emt 0:01:16]} Kd7 {[%emt 0:00:48]} 96. Nxc6 {[%emt 0:00:28]} Rxc6 {[%emt 0:00:05]} 97. Rxf5 {[%emt 0:00:07]} Ke6 {[%emt 0:00:28]} 98. Re5+ {[%emt 0:00:45]} Kf6 {[%emt 0:00:05]} 99. Ra5 {[%emt 0:00:08]} Rc1 {[%emt 0:00:18]} 1/2-1/2